bitfinex/quotes_ETHUSD_20250123
["timestamp","ask_amount","ask_price","bid_price","bid_amount"]
[1737673921870,3.01122,3321.0,3320.4,2.01813]
[1737673922076,3.01135,3320.8,3320.4,2.01813]
[1737673923476,3.01109,3321.1,3320.4,5.02979]
[1737673923658,3.01032,3321.9,3321.0,3.0]
[1737673923827,3.01059,3321.7,3321.1,4.376417]
[1737673924032,3.01095,3321.2,3321.1,3.0]
[1737673924263,3.01141,3320.7,3320.6,0.7715]
[1737673925280,3.01141,3320.7,3320.3,0.7715]
[1737673925440,3.01141,3320.7,3320.4,3.0]
[1737673925637,3.01085,3321.4,3320.4,3.0]
[1737673925638,3.01159,3320.5,3320.4,3.05970761]
[1737673925883,3.01159,3320.5,3320.4,0.05970761]
[1737673925884,3.312749,3320.5,3320.4,0.05970761]
[1737673926293,3.01196,3320.1,3319.7,0.7715]
[1737673926787,3.01196,3320.1,3319.8,0.05904413]
[1737673926973,3.01207,3320.0,3319.8,0.05904413]
[1737673927170,3.01207,3320.0,3319.7,3.7715]
[1737673927490,3.01213,3319.9,3319.8,0.05904413]
[1737673927846,3.01241,3319.6,3319.5,3.0]
[1737673928281,3.0125,3319.5,3319.4,8.73]
[1737673928655,3.0125,3319.5,3319.4,11.73]
[1737673928856,3.01232,3319.7,3318.8,9.4806]
[1737673929059,3.01289,3319.1,3318.9,8.73]
[1737673929289,3.01295,3319.0,3318.9,8.73]
[1737673929447,3.01295,3319.0,3318.8,0.7506]
[1737673932087,3.01304,3318.9,3318.5,0.8128]
[1737673932288,3.01331,3318.6,3318.5,0.8128]
[1737673932694,3.01346,3318.5,3318.2,3.7838]
[1737673932991,3.01353,3318.4,3318.2,3.7838]
[1737673933195,3.01353,3318.4,3317.5,3.0143]
[1737673933196,3.01395,3317.9,3317.8,0.8207]
[1737673933434,3.01448,3317.4,3316.4,3.01523]
[1737673933640,3.01426,3317.6,3317.0,0.8207]
[1737673933930,3.01449,3317.4,3317.0,0.8207]
[1737673934497,3.01432,3317.5,3317.0,0.8207]
[1737673934794,3.01411,3317.8,3317.0,0.8207]
[1737673935201,3.01435,3317.5,3317.0,0.8207]
[1737673935604,3.01448,3317.4,3317.0,0.8207]
[1737673936140,0.5468,3317.9,3316.8,8.73]
[1737673936141,3.01486,3316.9,3316.8,8.73]
[1737673936324,3.01486,3316.9,3316.7,0.7536]
[1737673936495,3.01486,3316.9,3316.5,0.15725644]
[1737673936904,3.01495,3316.8,3316.5,3.15725644]
[1737673937110,3.01479,3317.0,3316.5,6.25928206]
[1737673937314,3.0149,3316.9,3316.5,0.15725644]
[1737673937515,3.01469,3317.1,3316.5,0.15725644]
[1737673937736,3.01469,3317.1,3316.5,3.15725644]
[1737673938754,3.01429,3317.6,3316.8,0.8032]
[1737673938953,3.01414,3317.7,3316.9,3.0]
[1737673939155,3.01414,3317.7,3317.0,1.25332]
[1737673939330,3.01404,3317.8,3317.0,1.25332]
[1737673939665,3.01429,3317.6,3317.2,3.0]
[1737673940044,3.01404,3317.8,3317.0,1.25332]
[1737673940446,3.01427,3317.6,3317.2,3.0]
[1737673940757,3.01427,3317.6,3317.3,0.06289428]
[1737673940964,3.01415,3317.7,3317.3,0.06289428]
[1737673941332,3.01404,3317.8,3317.5,3.0]
[1737673941516,3.01422,3317.6,3317.5,3.0]
[1737673941714,3.01452,3317.3,3317.2,3.0]
[1737673942237,3.01452,3317.3,3317.2,38.0]
[1737673942755,3.01446,3317.4,3317.2,3.0]
[1737673943057,3.01368,3318.2,3317.3,0.7672]
[1737673943262,3.01368,3318.2,3317.5,0.7672]
[1737673943563,3.0135,3318.4,3317.8,0.7672]
[1737673943859,3.01362,3318.3,3317.8,0.7672]
[1737673944062,3.01356,3318.4,3317.8,0.7672]
[1737673944231,3.01356,3318.4,3318.0,3.0]
[1737673944424,3.0134,3318.5,3317.8,4.14534]
[1737673944758,3.01361,3318.3,3317.8,12.87534]
[1737673944918,3.01361,3318.3,3317.8,47.87534]
[1737673945119,3.0134,3318.5,3317.8,47.87534]
[1737673945439,3.01313,3318.8,3317.8,11.73]
[1737673945626,3.01395,3317.9,3317.8,11.73]
[1737673946842,3.01377,3318.1,3317.8,11.73]
[1737673947146,3.01361,3318.3,3317.8,11.73]
[1737673947565,3.01386,3318.0,3317.9,0.7769]
[1737673947715,3.01369,3318.2,3317.9,0.7769]
[1737673948123,3.01293,3319.1,3318.3,3.0]
[1737673948409,3.01259,3319.4,3318.5,6.01334]
[1737673948522,3.01283,3319.2,3318.7,3.0]
[1737673948724,3.55489694,3320.7,3317.9,4.26459]
[1737673948725,3.01239,3319.7,3319.0,3.78981]
[1737673948945,3.01239,3319.7,3319.2,3.0]
[1737673949148,3.01214,3319.9,3319.4,3.0]
[1737673949350,3.0118,3320.3,3319.6,6.0124]
[1737673949549,3.01151,3320.6,3320.0,3.0]
[1737673949762,3.01186,3320.2,3320.1,3.0]
[1737673950137,3.668895,3320.2,3320.1,3.0]
[1737673950421,3.01186,3320.2,3320.1,3.0]
[1737673952019,3.01168,3320.5,3320.1,3.7525]
[1737673952236,3.01168,3320.4,3320.1,3.7525]
[1737673952582,3.01168,3320.4,3320.2,0.05935941]
[1737673953351,3.01151,3320.6,3320.2,0.05935941]
[1737673953538,3.01132,3320.8,3320.2,0.05935941]
[1737673953739,3.01097,3321.2,3320.4,3.01162]
[1737673953981,3.01077,3321.4,3320.5,3.05894145]
[1737673953982,3.01105,3321.1,3320.5,3.05894145]
[1737673954378,3.01105,3321.1,3320.6,0.7525]
[1737673954584,3.01141,3320.7,3320.4,3.0]
[1737673954798,3.01123,3320.9,3320.4,3.0]
[1737673954972,3.01105,3321.1,3320.5,1.173]
[1737673955554,3.01105,3321.1,3320.6,0.05817475]
[1737673956386,3.01116,3321.0,3320.6,0.05817475]
[1737673956584,3.01131,3320.9,3320.6,0.05817475]
[1737673957692,4.15768414,3321.9,3320.6,0.05817475]
[1737673957693,3.01141,3320.7,3320.6,0.05817475]
[1737673958176,3.0113,3320.9,3320.4,3.0]
[1737673958403,3.01143,3320.7,3320.5,1.23181354]
[1737673959188,3.0113,3320.9,3320.5,1.23181354]
[1737673959479,0.5468,3322.0,3320.6,12.4934]
[1737673959737,3.01051,3321.7,3321.1,3.0]
[1737673959877,3.01049,3321.8,3321.1,3.01103]
[1737673960077,3.01026,3322.0,3321.3,6.01079]
[1737673960296,3.01026,3322.0,3321.6,0.7634]
[1737673960487,3.00985,3322.5,3321.6,0.7634]
[1737673960730,3.01028,3322.0,3321.7,0.05684201]
[1737673960882,3.01028,3322.0,3321.7,3.05684201]
[1737673961078,3.01028,3322.0,3321.7,3.77929612]
[1737673961282,3.00997,3322.3,3321.7,12.50929612]
[1737673962320,3.01041,3321.8,3321.7,0.05684201]
[1737673962692,3.0106,3321.6,3321.3,8.73]
[1737673963028,3.01068,3321.5,3321.4,3.0]
[1737673964244,3.01054,3321.7,3321.4,3.0]
[1737673964542,3.01033,3321.9,3321.4,4.3096703]
[1737673964719,3.01012,3322.2,3321.5,3.01068]
[1737673964927,3.01012,3322.2,3321.4,13.0396703]
[1737673964928,3.01012,3322.2,3321.6,11.73]
[1737673965225,3.00992,3322.4,3321.7,0.7656]
[1737673965529,3.01013,3322.2,3321.8,3.0]
[1737673965739,3.01013,3322.2,3321.8,11.73]
[1737673966026,3.01014,3322.1,3321.8,11.73]
[1737673967003,3.01032,3321.9,3321.8,11.73]
[1737673967335,3.01068,3321.5,3321.4,0.7712]
[1737673967918,3.0105,3321.8,3321.4,1.72132]
[1737673968119,3.0105,3321.8,3321.5,3.0]
[1737673968430,3.0105,3321.7,3321.5,3.0]
[1737673969623,3.01024,3322.0,3321.5,3.0]
[1737673969797,0.5468,3323.1,3321.5,3.0]
[1737673970001,0.84772,3323.1,3321.7,3.7617]
[1737673970194,3.00988,3322.4,3321.7,6.0105]
[1737673970399,3.00967,3322.7,3321.6,10.075132]
[1737673970400,3.00967,3322.7,3322.2,3.8268]
[1737673970595,3.00914,3323.2,3322.5,3.8268]
[1737673970824,3.0086,3323.9,3322.8,3.0]
[1737673971029,3.0086,3323.9,3322.7,3.00954]
[1737673971030,3.00924,3323.1,3322.9,0.88160638]
[1737673971240,3.00924,3323.1,3322.9,0.05480638]
[1737673971241,3.00932,3323.0,3322.9,0.05480638]
[1737673971832,3.00978,3322.5,3322.4,3.0]
[1737673974194,3.00948,3322.9,3322.4,4.25568]
[1737673974389,3.00948,3322.9,3322.4,3.0]
[1737673975261,3.00926,3323.1,3322.4,3.0]
[1737673975751,0.5468,3323.5,3322.4,3.0]
[1737673976055,3.00978,3322.5,3322.4,3.0]
[1737673976853,3.00995,3322.4,3322.2,3.0]
[1737673977007,3.00995,3322.4,3322.2,11.73]
[1737673977349,3.0099,3322.4,3322.2,11.73]
[1737673977553,3.00963,3322.7,3322.2,12.97983]
[1737673977866,3.00951,3322.8,3322.4,3.0]
[1737673978209,3.00951,3322.8,3322.5,0.8175]
[1737673978509,3.00933,3323.0,3322.5,9.5475]
[1737673979258,3.00943,3322.9,3322.5,9.5475]
[1737673979443,3.00954,3322.8,3322.6,1.25475]
[1737673980363,3.00933,3323.0,3322.6,1.25475]
[1737673980656,3.00952,3322.8,3322.6,1.25475]
[1737673981428,3.00952,3322.8,3322.5,9.5475]
[1737673981429,3.00969,3322.6,3322.5,11.73]
[1737673982766,3.00969,3322.6,3322.5,3.0]
[1737673985671,3.00969,3322.6,3322.5,3.05293356]
[1737673987873,3.0096,3322.7,3322.6,3.0]
[1737673988074,3.00969,3322.6,3322.5,0.88373356]
[1737673988274,3.00969,3322.6,3322.5,0.8308]
[1737673988777,3.00983,3322.5,3322.1,0.7843]
[1737673989131,3.01005,3322.2,3322.1,1.16273]
[1737673989330,3.00993,3322.4,3322.1,1.16273]
[1737673989533,3.00969,3322.6,3322.1,1.16273]
[1737673989781,0.59279854,3323.4,3322.1,1.36814393]
[1737673989951,3.00989,3322.4,3322.1,1.36814393]
[1737673990862,3.00989,3322.4,3322.2,0.20541393]
[1737673991580,3.00996,3322.3,3322.2,0.20541393]
[1737673992677,3.01023,3322.0,3321.9,3.20541393]
[1737673992880,3.01023,3322.0,3321.9,0.20541393]
[1737673993801,3.00987,3322.4,3321.9,0.20541393]
[1737673994006,3.00987,3322.4,3322.0,3.0]
[1737673994308,3.00989,3322.4,3322.0,4.25625]
[1737673994505,3.00996,3322.3,3322.0,4.25625]
[1737673994703,3.01007,3322.2,3322.0,4.25625]
[1737673994908,3.01014,3322.1,3322.0,3.0]
[1737673996910,3.01004,3322.3,3322.0,3.0]
[1737673997082,3.00972,3322.6,3322.0,3.0]
[1737673997311,2.93954,3322.8,3322.1,0.8109]
[1737673997467,3.00962,3322.7,3322.2,1.25409]
[1737673997675,3.00933,3323.0,3322.5,3.0]
[1737673998009,3.00923,3323.2,3322.5,3.00972]
[1737673998193,3.00899,3323.4,3322.7,3.0]
[1737673998194,3.00907,3323.3,3322.7,3.0]
[1737673998511,3.00863,3323.8,3322.9,3.00941]
[1737673998805,3.00884,3323.6,3323.0,0.380381]
[1737673999122,3.00941,3322.9,3322.8,3.0]
[1737674000317,3.00941,3322.9,3322.8,3.20546054]
[1737674000484,3.00941,3322.9,3322.8,3.25652421]
[1737674001120,6.01861,3323.1,3322.8,3.25652421]
[1737674001271,3.00869,3323.7,3322.8,3.25652421]
[1737674001471,3.00926,3323.1,3322.8,4.45517663]
[1737674001671,3.00926,3323.1,3322.8,4.24971609]
[1737674001873,0.55,3323.9,3322.8,4.24971609]
[1737674001874,3.00887,3323.6,3322.9,0.8259]
[1737674002223,3.00887,3323.6,3323.0,0.05091742]
[1737674002788,3.00912,3323.3,3323.0,1.4324084]
[1737674003120,3.009,3323.4,3323.1,3.0]
[1737674003320,3.00876,3323.7,3323.0,4.4324084]
[1737674003628,3.00851,3323.9,3323.3,3.0]
[1737674003827,3.00851,3323.9,3323.4,0.05051638]
[1737674003969,3.00851,3323.9,3323.4,0.65648102]
[1737674004913,3.00851,3323.9,3323.5,0.7847]
[1737674005274,3.00851,3323.9,3323.6,3.05033903]
[1737674005692,3.00868,3323.8,3323.6,3.05033903]
[1737674006031,3.00869,3323.7,3323.6,3.05033903]
[1737674006334,3.00869,3323.7,3323.6,0.05033903]
[1737674006915,3.00904,3323.4,3323.2,0.8223]
[1737674007117,3.00905,3323.3,3323.2,2.2156791]
[1737674007276,3.00905,3323.3,3322.9,0.7842]
[1737674007985,3.00897,3323.4,3322.9,0.7842]
[1737674009008,3.00905,3323.4,3322.9,3.7842]
[1737674009883,3.0088,3323.6,3322.9,0.7842]
[1737674010086,3.0089,3323.5,3322.9,3.7842]
[1737674010408,3.0089,3323.5,3323.0,0.629369]
[1737674010786,3.00904,3323.4,3323.0,0.629369]
[1737674010987,3.00904,3323.4,3322.9,0.7842]
[1737674011209,3.00907,3323.3,3322.9,0.7842]
[1737674011691,3.00932,3323.0,3322.9,0.7842]
[1737674011892,3.00932,3323.0,3322.8,3.0]
[1737674012140,0.5468,3323.4,3322.5,3.0]
[1737674012429,3.00953,3322.8,3322.4,0.8259]
[1737674012595,3.00978,3322.5,3322.4,0.8259]
[1737674013195,3.00966,3322.7,3322.4,0.8259]
[1737674013385,3.00953,3322.8,3322.4,0.8259]
[1737674013582,3.00978,3322.5,3322.4,0.8259]
[1737674013984,3.00978,3322.5,3322.4,3.0]
[1737674014228,3.00987,3322.4,3322.3,8.73]
[1737674014426,3.0105,3321.8,3321.5,9.5352]
[1737674014626,3.55648,3322.7,3321.5,0.8052]
[1737674014826,0.5468,3323.1,3322.2,3.0]
[1737674015025,3.00932,3323.0,3322.2,12.5352]
[1737674015227,3.00959,3322.8,3322.3,1.30478728]
[1737674015537,3.00966,3322.7,3322.4,3.0]
[1737674015832,3.00969,3322.6,3322.5,0.05109668]
[1737674021459,3.01005,3322.2,3322.1,3.0]
[1737674021682,3.0102,3322.1,3321.9,0.8052]
[1737674022070,3.01028,3322.0,3321.6,9.5347]
[1737674022287,3.01034,3321.9,3321.7,3.0]
[1737674022596,3.01028,3322.0,3321.7,3.0]
[1737674023000,3.00924,3323.1,3321.7,3.0]
[1737674023001,3.00979,3322.5,3321.7,4.25347]
[1737674023557,3.00979,3322.5,3321.9,3.0]
[1737674023796,3.01001,3322.3,3321.7,4.25347]
[1737674024372,3.00963,3322.7,3321.8,0.53296504]
[1737674024586,3.00951,3322.8,3321.8,0.53296504]
[1737674024760,3.01031,3322.0,3321.8,0.53296504]
[1737674025655,3.01031,3322.0,3321.7,3.0]
[1737674026398,3.01038,3321.9,3321.7,3.0]
[1737674027099,3.01041,3321.8,3321.7,3.0]
[1737674027284,3.01062,3321.6,3321.2,0.8047]
[1737674027792,3.01062,3321.6,3321.2,3.8047]
[1737674027983,3.01062,3321.6,3321.2,0.8047]
[1737674028507,3.01071,3321.5,3321.2,0.8047]
[1737674028659,3.01097,3321.2,3321.0,3.0]
[1737674028858,3.01086,3321.3,3321.0,3.0]
[1737674029101,3.01105,3321.1,3321.0,3.0]
[1737674029407,3.01105,3321.1,3320.9,8.73]
[1737674029770,3.01114,3321.0,3320.9,8.73]
[1737674030361,3.01105,3321.1,3321.0,3.0]
[1737674030595,3.01105,3321.1,3320.9,8.73]
[1737674030596,3.01114,3321.0,3320.9,0.05338979]
[1737674030776,3.01118,3321.0,3320.4,3.01168]
[1737674030980,3.01055,3321.7,3320.9,0.8047]
[1737674031215,3.01141,3320.7,3320.3,2.167]
[1737674031416,3.01141,3320.7,3320.6,0.20494256]
[1737674031990,3.613681,3320.7,3320.6,0.20494256]
[1737674032189,4.160481,3320.7,3320.6,0.20494256]
[1737674032722,3.01252,3319.5,3318.9,0.775]
[1737674032892,3.01271,3319.3,3319.0,8.73]
[1737674033090,3.01271,3319.3,3319.1,3.0]
[1737674033296,3.01297,3319.0,3318.7,2.167]
[1737674033499,3.01248,3319.6,3318.7,5.167]
[1737674033720,3.01304,3318.9,3318.7,5.167]
[1737674034077,3.01304,3318.9,3318.7,2.167]
[1737674034610,0.301248,3319.6,3318.7,2.167]
[1737674034813,3.01313,3318.8,3318.7,2.167]
[1737674037983,3.01313,3318.8,3318.7,2.22199356]
[1737674039000,3.01313,3318.8,3318.7,0.05499356]
[1737674039307,3.01356,3318.4,3318.0,0.7712]
[1737674039509,3.0136,3318.3,3318.1,0.0554336]
[1737674040319,3.01368,3318.2,3318.1,0.0554336]
[1737674040504,3.01368,3318.2,3317.7,0.8267]
[1737674040700,3.01368,3318.2,3317.8,0.05573557]
[1737674040923,3.01368,3318.2,3317.7,3.8267]
[1737674041126,3.01414,3317.7,3317.5,8.73]
[1737674041428,3.01414,3317.7,3317.6,3.0]
[1737674041790,3.01401,3317.9,3317.6,3.0]
[1737674041985,3.01387,3318.0,3317.6,3.0]
[1737674042199,3.01405,3317.8,3317.6,3.0]
[1737674043928,3.01413,3317.7,3317.6,3.0]
[1737674045235,3.01448,3317.4,3317.1,8.73]
[1737674045440,3.01432,3317.5,3317.1,8.73]
[1737674045612,3.01449,3317.3,3317.2,0.05703237]
[1737674046121,3.01449,3317.3,3316.3,0.7791]
[1737674046319,3.01449,3317.3,3316.4,0.05597086]
[1737674046521,0.301432,3317.4,3316.4,0.05597086]
[1737674046689,3.01522,3316.5,3316.4,0.05597086]
[1737674046888,3.01508,3316.7,3316.4,0.05597086]
[1737674047148,3.01473,3317.1,3316.4,0.05597086]
[1737674047345,3.01461,3317.2,3316.4,0.05597086]
[1737674047637,4.16488423,3317.5,3316.4,0.05597086]
[1737674047835,0.41648842,3317.4,3316.4,0.05597086]
[1737674048136,3.01489,3316.9,3316.4,0.05597086]
[1737674048430,3.01466,3317.2,3316.4,0.05597086]
[1737674048741,3.01475,3317.1,3316.5,3.0]
[1737674048939,3.01472,3317.1,3316.6,0.055824]
[1737674049143,3.01478,3317.0,3316.6,0.055824]
[1737674049440,3.01504,3316.7,3316.6,0.055824]
[1737674049794,0.5468,3316.8,3315.9,0.7791]
[1737674049795,3.01531,3316.4,3315.9,0.7791]
[1737674050333,3.01531,3316.4,3316.1,3.0]
[1737674050711,3.01531,3316.4,3315.9,0.7791]
[1737674050712,3.01531,3316.4,3315.9,3.7791]
[1737674051107,3.01531,3316.4,3316.1,3.0]
[1737674051298,3.01515,3316.6,3315.9,3.79483]
[1737674051610,3.01477,3317.0,3316.1,3.01559]
[1737674051909,0.5468,3317.4,3316.2,3.0]
[1737674052110,0.5468,3317.4,3316.0,0.7789]
[1737674052305,9.04347,3317.3,3316.0,0.7789]
[1737674052511,3.01533,3316.4,3316.0,0.7789]
[1737674052833,3.01533,3316.4,3316.2,3.0]
[1737674053236,3.01533,3316.4,3316.1,35.0]
[1737674053400,3.01533,3316.4,3315.7,0.7645]
[1737674053785,3.01559,3316.1,3315.7,0.7645]
[1737674053941,3.01559,3316.1,3315.9,3.0]
[1737674054343,3.01559,3316.1,3315.7,0.7645]
[1737674054579,3.01543,3316.3,3315.7,0.7645]
[1737674054779,3.01543,3316.3,3315.8,38.0]
[1737674056483,3.01551,3316.2,3315.8,38.0]
[1737674057076,3.01543,3316.3,3315.8,38.0]
[1737674057684,3.0157,3316.0,3315.8,38.0]
[1737674058051,3.0155,3316.2,3315.9,0.20450529]
[1737674058256,3.01559,3316.1,3315.9,0.20450529]
[1737674058591,3.01568,3316.0,3315.9,0.20450529]
[1737674058775,3.01568,3316.0,3315.9,3.20450529]
[1737674059358,3.01559,3316.1,3315.9,0.20450529]
[1737674059557,3.01542,3316.3,3315.9,0.20450529]
[1737674059892,3.01557,3316.2,3315.6,3.1676187]
[1737674060191,3.01557,3316.2,3315.6,3.81874735]
[1737674060394,3.01531,3316.4,3315.6,3.81874735]
[1737674060694,3.0153,3316.5,3316.0,0.7595]
[1737674060895,3.01528,3316.5,3316.1,0.05711955]
[1737674061691,3.01505,3316.7,3316.1,0.05711955]
[1737674061896,3.01539,3316.4,3316.1,0.05711955]
[1737674062203,3.01549,3316.2,3316.1,0.05711955]
[1737674062697,3.01559,3316.1,3315.7,0.53266653]
[1737674063100,3.01571,3316.0,3315.6,0.9271187]
[1737674063295,3.01579,3315.9,3315.6,0.9271187]
[1737674063508,3.01571,3316.0,3315.6,0.9271187]
[1737674063725,3.01579,3315.9,3315.6,0.9271187]
[1737674063865,3.01579,3315.9,3315.6,0.1676187]
[1737674064199,3.01535,3316.4,3315.6,0.1676187]
[1737674064410,3.01509,3316.7,3316.2,0.7595]
[1737674065261,3.0147,3317.1,3316.2,1.738568]
[1737674065563,0.5468,3317.9,3316.9,0.7595]
[1737674065778,3.01303,3319.0,3317.3,3.0]
[1737674065779,3.01412,3317.8,3317.3,3.0]
[1737674065974,3.01394,3318.0,3317.5,0.7595]
[1737674066257,3.01397,3317.9,3317.5,0.7595]
[1737674066699,0.5468,3318.3,3317.2,3.7595]
[1737674066901,3.01439,3317.5,3317.2,0.7595]
[1737674067074,1.13877751,3318.3,3317.2,3.77408]
[1737674067276,3.01368,3318.2,3317.6,0.53451233]
[1737674067496,3.01368,3318.2,3317.6,3.53451233]
[1737674067802,3.01368,3318.2,3317.7,0.8142]
[1737674068005,3.01378,3318.1,3317.7,0.8142]
[1737674068826,3.01378,3318.1,3317.8,0.53451233]
[1737674069734,3.01395,3317.9,3317.8,0.53451233]
[1737674070306,3.01395,3317.9,3317.8,0.20557843]
[1737674070911,3.01395,3317.9,3317.8,0.25863462]
[1737674071522,3.01378,3318.1,3317.8,0.25863462]
[1737674071698,3.26252,3319.5,3317.8,1.04013462]
[1737674071699,3.01359,3318.3,3317.8,1.04013462]
[1737674071899,3.0137,3318.2,3317.8,1.04013462]
[1737674072099,3.0137,3318.2,3317.8,0.83455619]
[1737674072330,3.01384,3318.1,3317.8,0.83455619]
[1737674072523,0.60524379,3318.6,3317.8,0.05305619]
[1737674072524,3.01395,3318.0,3317.8,0.05305619]
[1737674072699,3.01395,3317.9,3317.3,0.20557843]
[1737674072911,0.5468,3318.3,3317.4,0.05336992]
[1737674073233,6.02842,3317.7,3317.3,0.20557843]
[1737674073406,3.01421,3317.7,3317.3,0.20557843]
[1737674073605,3.01421,3317.7,3317.4,0.05336992]
[1737674074334,3.01395,3317.9,3317.4,0.25894835]
[1737674074632,3.01417,3317.7,3317.4,0.25894835]
[1737674076424,3.01417,3317.7,3317.5,0.20557843]
[1737674076811,3.01417,3317.7,3317.6,0.05322315]
[1737674077927,3.01417,3317.7,3317.1,3.79617]
[1737674078128,3.01417,3317.7,3317.6,0.05322315]
[1737674078325,3.01417,3317.7,3317.1,4.777273]
[1737674078536,3.01417,3317.7,3317.6,0.05322315]
[1737674078832,3.01416,3317.7,3317.2,3.0]
[1737674079008,3.01416,3317.7,3317.6,0.05322315]
[1737674079212,3.01386,3318.0,3317.4,0.8131]
[1737674079415,3.01383,3318.1,3317.6,0.0532522]
[1737674079737,3.01383,3318.1,3317.7,0.05317882]
[1737674080047,3.01383,3318.1,3317.5,3.38131]
[1737674080196,3.01383,3318.1,3317.8,0.05301799]
[1737674080401,3.01383,3318.1,3317.7,0.20631333]
[1737674080599,3.01362,3318.3,3317.9,0.05294462]
[1737674080840,3.01344,3318.5,3317.9,0.8131]
[1737674081040,3.01352,3318.4,3318.0,3.05287991]
[1737674081201,3.56045,3318.3,3318.0,0.05287991]
[1737674081541,3.01394,3318.0,3317.3,0.8131]
[1737674081710,3.0144,3317.4,3316.8,0.8131]
[1737674081897,3.0144,3317.4,3316.8,3.8131]
[1737674082102,3.01466,3317.2,3316.8,0.8131]
[1737674082945,3.01441,3317.4,3316.8,3.82803]
[1737674083157,3.0142,3317.7,3316.9,3.0]
[1737674083453,3.01368,3318.2,3317.4,0.8131]
[1737674083614,3.01393,3318.0,3317.4,0.8131]
[1737674084185,3.01399,3317.9,3317.4,0.8131]
[1737674084484,3.01408,3317.8,3317.4,0.8131]
[1737674086641,6.02786,3318.0,3317.4,0.8131]
[1737674086955,14.3,3327.6,3317.4,0.8131]
[1737674086956,3.01379,3318.1,3317.5,3.382759]
[1737674087278,3.01379,3318.1,3317.5,3.397009]
[1737674087855,3.01386,3318.0,3317.5,0.382759]
[1737674089985,3.01351,3318.4,3317.7,3.01408]
[1737674090152,0.5468,3318.9,3317.8,3.0]
[1737674090153,3.55989,3318.9,3317.8,3.0]
[1737674090365,3.01362,3318.3,3317.8,3.0]
[1737674090673,3.01369,3318.2,3317.9,0.05293885]
[1737674091393,3.01386,3318.0,3317.6,0.8131]
[1737674092401,3.01396,3317.9,3317.6,0.8131]
[1737674092907,3.01371,3318.2,3317.7,3.0]
[1737674093058,3.01371,3318.2,3317.7,3.682725]
[1737674094474,3.01377,3318.1,3317.7,3.0]
[1737674094681,3.01371,3318.2,3317.7,3.0]
[1737674095190,3.01371,3318.2,3317.8,0.20698592]
[1737674097073,3.01371,3318.2,3317.7,3.22111592]
[1737674097410,3.01373,3318.2,3317.7,0.20698592]
[1737674098415,3.01383,3318.1,3317.8,0.20698592]
[1737674099286,0.5468,3318.6,3317.8,0.20698592]
[1737674099623,3.01377,3318.1,3317.8,0.20698592]
[1737674099807,3.01378,3318.1,3317.8,0.20698592]
[1737674100011,3.01378,3318.1,3317.6,0.8131]
[1737674101021,3.01378,3318.1,3317.7,3.0]
[1737674101327,3.01368,3318.2,3317.7,3.20702389]
[1737674101628,3.01368,3318.2,3317.8,0.70343439]
[1737674102240,3.0136,3318.3,3317.7,3.22115389]
[1737674102601,3.01369,3318.2,3317.9,0.20702389]
[1737674104003,3.01369,3318.2,3317.6,6.82731]
[1737674104203,3.01369,3318.2,3317.7,3.01413]
[1737674104642,3.01354,3318.4,3317.9,3.0]
[1737674104847,3.01354,3318.4,3318.0,0.8273]
[1737674105015,0.5468,3318.9,3318.1,3.0]
[1737674105217,0.3563768,3319.4,3318.1,6.0137]
[1737674105218,3.01323,3318.7,3318.1,6.0137]
[1737674105416,0.5468,3319.2,3318.1,11.73]
[1737674105750,3.01368,3318.2,3318.1,11.73]
[1737674106037,3.01368,3318.2,3318.0,1.03477607]
[1737674106197,3.01351,3318.4,3318.0,1.03477607]
[1737674106404,0.5468,3319.2,3318.0,1.03477607]
[1737674106639,6.0275,3318.2,3318.0,1.03477607]
[1737674106837,3.01375,3318.2,3318.1,0.20747607]
[1737674107043,3.01336,3318.6,3318.1,0.20747607]
[1737674107407,3.01342,3318.5,3318.1,0.20747607]
[1737674107952,3.5598,3319.0,3318.1,0.20747607]
[1737674108106,3.01359,3318.3,3318.1,3.20747607]
[1737674108306,3.01359,3318.3,3318.2,0.20747607]
[1737674109469,3.01339,3318.6,3318.2,0.20747607]
[1737674109807,3.01339,3318.6,3318.1,3.20747607]
[1737674110230,3.01341,3318.5,3318.1,0.20747607]
[1737674110832,3.01331,3318.7,3318.1,0.20747607]
[1737674111036,3.01314,3318.8,3318.1,3.22118607]
[1737674111236,3.01314,3318.8,3318.2,0.20747607]
[1737674111458,3.01322,3318.7,3318.2,0.20747607]
[1737674111968,3.01305,3318.9,3318.2,0.20747607]
[1737674112131,3.01305,3318.9,3318.3,0.20747607]
[1737674112967,3.01314,3318.8,3318.3,0.20747607]
[1737674113195,0.5468,3319.5,3318.4,0.8199]
[1737674113392,3.01237,3319.7,3319.0,3.8199]
[1737674113550,3.0121,3320.0,3319.4,3.0]
[1737674113749,0.5468,3320.5,3319.6,3.0]
[1737674114270,3.01223,3319.8,3319.6,3.0]
[1737674114485,0.59645453,3320.6,3319.2,9.5283]
[1737674114486,3.01259,3319.5,3319.2,9.5283]
[1737674114987,3.01259,3319.5,3319.3,3.0]
[1737674115134,3.01236,3319.7,3319.3,3.0]
[1737674115563,3.01237,3319.7,3319.3,3.0]
[1737674115947,3.01252,3319.5,3319.3,3.0]
[1737674116167,3.01237,3319.7,3319.3,3.0]
[1737674116537,3.01216,3319.9,3319.3,4.554115]
[1737674116750,3.01178,3320.3,3319.4,0.7555]
[1737674116964,3.01196,3320.1,3319.5,6.01243]
[1737674117167,3.01196,3320.1,3319.7,3.0]